bitfinex-derivatives/quotes_BNBF0:USTF0_20250709
["timestamp","ask_amount","ask_price","bid_price","bid_amount"]
[1752090016484,0.2602268,669.1,668.33,0.72372564]
[1752090016780,0.2602268,669.1,668.34,0.72372564]
[1752090016980,0.2602268,669.1,668.35,0.72372564]
[1752090017184,0.2602268,669.1,668.36,0.72372564]
[1752090017381,0.2602268,669.1,668.37,0.72372564]
[1752090017580,0.2602268,669.1,668.38,0.72372564]
[1752090017785,0.2602268,669.1,668.39,0.72372564]
[1752090017986,0.2602268,669.1,668.28,1.6587802]
[1752090017987,0.2602268,669.1,668.4,0.72372564]
[1752090018283,2.23742132,669.42,668.41,0.72372564]
[1752090018486,0.26016455,669.22,668.42,0.72372564]
[1752090018783,2.23742132,669.54,668.43,0.72372564]
[1752090018991,0.26013343,669.28,668.44,0.72372564]
[1752090019287,2.23742132,669.53,668.45,0.72372564]
[1752090019483,2.23742132,669.56,668.46,0.72372564]
[1752090019685,0.26012468,669.28,668.47,0.72372564]
[1752090019888,0.26012468,669.28,668.48,0.72372564]
[1752090020188,0.26012468,669.28,668.49,0.72372564]
[1752090020385,0.26012468,669.28,668.5,0.72372564]
[1752090020589,0.26012468,669.28,668.51,0.72372564]
[1752090020790,0.26012468,669.28,668.52,0.72372564]
[1752090021088,0.26012468,669.28,668.07,3.30879161]
[1752090021089,0.26012468,669.28,668.53,0.72372564]
[1752090021285,0.26012468,669.28,668.54,0.72372564]
[1752090021488,0.26012468,669.28,668.55,0.72372564]
[1752090021784,0.26012468,669.28,668.56,0.72372564]
[1752090021991,0.26012468,669.28,668.57,0.72372564]
[1752090022185,0.26012468,669.28,668.58,0.72372564]
[1752090022489,0.26012468,669.28,668.59,0.72372564]
[1752090022686,0.26012468,669.28,668.6,0.72372564]
[1752090022885,0.26012468,669.28,668.61,0.72372564]
[1752090023084,0.26012468,669.28,668.62,0.72372564]
[1752090023285,0.26012468,669.28,668.63,0.72372564]
[1752090023590,0.26012468,669.28,668.64,0.72372564]
[1752090023885,0.26012468,669.28,668.65,0.72372564]
[1752090024084,0.26012468,669.28,668.66,0.72372564]
[1752090024283,0.26012468,669.28,668.67,0.72214285]
[1752090024685,0.26012468,669.28,668.68,0.72214285]
[1752090024885,0.26012468,669.28,668.69,0.72214285]
[1752090025086,0.26012468,669.28,668.7,0.72214285]
[1752090025290,0.26012468,669.28,668.71,0.72214285]
[1752090025488,0.26012468,669.28,668.72,0.72214285]
[1752090025689,0.26012468,669.28,668.73,0.72214285]
[1752090025890,0.26012468,669.28,668.74,0.72214285]
[1752090026190,0.26012468,669.28,668.75,0.72214285]
[1752090026390,0.26012468,669.28,668.76,0.72214285]
[1752090026588,0.26012468,669.28,668.77,0.72214285]
[1752090026793,0.26012468,669.28,668.78,0.72214285]
[1752090027093,0.26012468,669.28,668.79,0.72214285]
[1752090027288,0.26012468,669.28,668.8,0.72214285]
[1752090027492,0.26012468,669.28,668.81,0.72214285]
[1752090027788,2.23742132,669.66,668.82,0.72214285]
[1752090027988,0.26005567,669.38,668.83,0.72214285]
[1752090028193,2.23742132,669.66,668.84,0.72214285]
[1752090028388,0.26005373,669.38,668.85,0.72214285]
[1752090028588,0.26005373,669.38,668.86,0.72214285]
[1752090028791,2.23742132,669.69,668.87,0.72214285]
[1752090029093,2.23742132,669.69,668.88,0.72214285]
[1752090029392,2.23742132,669.71,668.88,0.72214285]
[1752090029593,2.23742132,669.73,668.45,1.6587802]
[1752090029792,2.23742132,669.76,668.49,1.6587802]
[1752090029991,0.26008483,669.42,668.5,0.72025213]
[1752090030191,0.26008483,669.42,668.51,0.72025213]
[1752090030392,0.26008483,669.42,668.52,0.72025213]
[1752090030589,0.26008483,669.42,668.53,0.72025213]
[1752090030788,0.26008483,669.42,668.54,0.72025213]
[1752090030993,0.26008483,669.42,668.55,0.72025213]
[1752090031194,0.26008483,669.42,668.56,0.72025213]
[1752090031394,0.26008483,669.42,668.57,0.72025213]
[1752090031594,0.26008483,669.42,668.58,0.72025213]
[1752090031792,0.26008483,669.42,668.47,1.6587802]
[1752090031793,0.26008483,669.42,668.59,0.72025213]
[1752090031993,0.26008483,669.42,668.6,0.72025213]
[1752090032294,0.26008483,669.42,668.61,0.72025213]
[1752090032494,0.26008483,669.42,668.62,0.72025213]
[1752090032695,0.26008483,669.42,668.63,0.72025213]
[1752090032992,0.26008483,669.42,668.64,0.72025213]
[1752090033192,0.26008483,669.42,668.65,0.72025213]
[1752090033492,0.26008483,669.42,668.66,0.72025213]
[1752090033692,0.26008483,669.42,668.67,0.72025213]
[1752090033896,0.26008483,669.42,668.68,0.72025213]
[1752090034092,0.26008483,669.42,668.69,0.72025213]
[1752090034396,0.26008483,669.42,668.7,0.72025213]
[1752090034591,0.26008483,669.42,668.71,0.72025213]
[1752090034798,0.26008483,669.42,668.72,0.72025213]
[1752090034997,0.26008483,669.42,668.73,0.72025213]
[1752090035191,0.26008483,669.42,668.74,0.72025213]
[1752090035392,0.26008483,669.42,668.75,0.72025213]
[1752090035598,0.26008483,669.42,668.76,0.72025213]
[1752090035894,0.26008483,669.42,668.77,0.72025213]
[1752090036194,0.26008483,669.42,668.78,0.72025213]
[1752090036400,0.26008483,669.42,668.79,0.72025213]
[1752090036595,0.26008483,669.42,668.8,0.72025213]
[1752090036901,0.26008483,669.42,668.81,0.72025213]
[1752090037097,0.26008483,669.42,668.82,0.72025213]
[1752090037303,0.26008483,669.42,668.83,0.72025213]
[1752090037500,2.23742132,669.86,668.45,1.6587802]
[1752090037699,2.23742132,669.86,668.46,0.7188747]
[1752090037900,0.25995854,670.03,668.47,0.7188747]
[1752090038097,0.25995854,670.03,668.48,0.7188747]
[1752090038298,0.25995854,670.03,668.5,1.6587802]
[1752090038496,0.25995854,670.03,668.51,0.7188747]
[1752090038699,2.49737986,670.03,668.68,1.6587802]
[1752090038901,0.25995854,670.03,668.73,1.6587802]
[1752090039202,0.25995854,670.03,668.74,0.7188747]
[1752090039405,0.25995854,670.03,668.75,0.7188747]
[1752090039602,0.25995854,670.03,668.76,0.7188747]
[1752090039800,0.25995854,670.03,668.77,0.7188747]
[1752090040099,0.25995854,670.03,668.78,0.7188747]
[1752090040300,0.25995854,670.03,668.79,0.7188747]
[1752090040497,0.25995854,670.03,668.8,0.7188747]
[1752090040697,0.25995854,670.03,668.81,0.7188747]
[1752090040894,0.25995854,670.03,668.82,0.7188747]
[1752090041095,2.23742132,670.35,668.83,0.7188747]
[1752090041302,0.25989447,669.91,668.84,0.7188747]
[1752090041600,2.23742132,670.37,668.85,0.7188747]
[1752090041800,2.23742132,670.37,668.86,0.7188747]
[1752090041995,2.23742132,670.37,668.87,0.7188747]
[1752090042197,2.23742132,670.47,668.88,0.7188747]
[1752090042398,2.23742132,670.49,668.89,0.7188747]
[1752090042597,2.23742132,670.38,668.9,0.7188747]
[1752090042798,0.25987507,670.1,668.91,0.7188747]
[1752090042995,0.25987507,670.1,668.92,0.7188747]
[1752090043199,0.25987507,670.1,668.93,0.7188747]
[1752090043401,0.25987507,670.1,668.94,0.7188747]
[1752090043595,0.25987507,670.1,668.95,0.7188747]
[1752090043799,0.25987507,670.1,668.96,0.7188747]
[1752090043999,0.25987507,670.1,668.97,0.7188747]
[1752090044198,0.25987507,670.1,668.98,0.7188747]
[1752090044402,0.25987507,670.1,668.32,0.25989447]
[1752090044403,0.25987507,670.1,668.99,0.7188747]
[1752090044702,0.25987507,670.1,669.0,0.7188747]
[1752090045002,0.25987507,670.1,669.01,0.7188747]
[1752090045202,0.25987507,670.1,668.45,2.20586107]
[1752090045203,0.25987507,670.1,669.02,0.7188747]
[1752090045404,0.25987507,670.1,669.03,0.7188747]
[1752090045599,0.25987507,670.1,669.04,0.7188747]
[1752090045799,0.25987507,670.1,669.05,0.7188747]
[1752090045999,0.25987507,670.1,669.06,0.7188747]
[1752090046299,0.25987507,670.1,668.61,1.6587802]
[1752090046502,0.25987507,670.1,668.62,1.6587802]
[1752090046802,0.25987507,670.1,668.64,1.6587802]
[1752090047002,0.25987507,670.1,668.65,1.6587802]
[1752090047406,0.25987507,670.1,668.64,1.6587802]
[1752090047706,0.25987507,670.1,668.66,2.486]
[1752090048501,0.25987507,670.1,668.98,1.6587802]
[1752090048706,0.25987507,670.1,668.99,1.64051148]
[1752090048906,0.25987507,670.1,669.0,1.64051148]
[1752090049106,0.25987507,670.1,669.01,1.64051148]
[1752090049309,0.25987507,670.1,669.02,1.64051148]
[1752090049507,0.25987507,670.1,669.03,1.64051148]
[1752090049708,0.25987507,670.1,669.04,1.64051148]
[1752090049906,0.25987507,670.1,668.75,2.20586107]
[1752090049907,0.25987507,670.1,669.05,1.64051148]
[1752090050104,0.25987507,670.1,669.06,1.64051148]
[1752090050302,0.25987507,670.1,669.07,1.64051148]
[1752090050502,0.25987507,670.1,669.08,1.64051148]
[1752090050806,0.25987507,670.1,669.09,1.64051148]
[1752090051003,0.25987507,670.1,669.1,1.64051148]
[1752090051206,0.25987507,670.1,669.11,1.64051148]
[1752090051407,0.25987507,670.1,669.12,1.64051148]
[1752090051605,0.25987507,670.1,669.13,1.64051148]
[1752090051808,0.25987507,670.1,669.14,1.64051148]
[1752090052003,0.25987507,670.1,669.15,1.64051148]
[1752090052208,0.25987507,670.1,669.16,1.64051148]
[1752090052408,0.25987507,670.1,669.17,1.64051148]
[1752090052711,0.25987507,670.1,669.18,1.64051148]
[1752090052908,0.25987507,670.1,669.19,1.64051148]
[1752090053110,0.25987507,670.1,669.2,1.64051148]
[1752090053306,0.25987507,670.1,668.82,2.20586107]
[1752090053307,0.25987507,670.1,669.21,1.64051148]
[1752090053510,0.25987507,670.1,669.22,1.64051148]
[1752090053707,0.25987507,670.1,669.23,1.64051148]
[1752090053911,0.25987507,670.1,669.24,1.64051148]
[1752090054107,0.25987507,670.1,669.0,1.6587802]
[1752090054108,0.25987507,670.1,669.25,1.64051148]
[1752090054313,0.25987507,670.1,669.26,1.64051148]
[1752090054512,0.25987507,670.1,669.27,1.64051148]
[1752090054710,0.25987507,670.1,669.28,1.64051148]
[1752090054915,0.25987507,670.1,669.29,1.64051148]
[1752090055213,0.25987507,670.1,669.3,1.64051148]
[1752090055413,0.25987507,670.1,669.31,1.64051148]
[1752090055615,0.25987507,670.1,669.32,1.64051148]
[1752090055913,0.25987507,670.1,669.33,1.64051148]
[1752090056113,0.25987507,670.1,669.34,1.64051148]
[1752090056409,0.25987507,670.1,669.35,1.64051148]
[1752090056609,0.25987507,670.1,669.36,1.64051148]
[1752090056814,0.25987507,670.1,669.37,1.64051148]
[1752090057013,0.25987507,670.1,669.02,1.6587802]
[1752090057014,0.25987507,670.1,669.38,1.64051148]
[1752090057211,0.25987507,670.1,669.39,1.64051148]
[1752090057415,0.25987507,670.1,669.4,1.64051148]
[1752090057609,0.25987507,670.1,669.02,1.6587802]
[1752090057911,0.25987507,670.1,669.03,1.64147522]
[1752090058113,0.25987507,670.1,669.04,1.64147522]
[1752090058315,0.25987507,670.1,669.05,1.64147522]
[1752090058513,0.25987507,670.1,669.06,1.64147522]
[1752090058708,0.25987507,670.1,669.04,1.6587802]
[1752090058709,0.25987507,670.1,669.07,1.64147522]
[1752090058914,0.25987507,670.1,669.08,1.64147522]
[1752090059214,0.25987507,670.1,669.09,1.64147522]
[1752090059516,0.25987507,670.1,669.1,1.64147522]
[1752090059709,0.25987507,670.1,669.17,1.6587802]
[1752090059911,0.25987507,670.1,669.18,1.64147522]
[1752090060117,0.25987507,670.1,669.19,1.64147522]
[1752090060316,0.25987507,670.1,669.2,1.64147522]
[1752090060516,0.25987507,670.1,669.21,1.64147522]
[1752090060812,0.25987507,670.1,669.22,1.64147522]
[1752090061017,0.25987507,670.1,669.23,1.64147522]
[1752090061314,0.25987507,670.1,669.24,1.64147522]
[1752090061615,0.25987507,670.1,669.25,1.64147522]
[1752090061816,0.25987507,670.1,669.26,1.64147522]
[1752090062014,0.25987507,670.1,669.27,1.64147522]
[1752090062619,0.25987507,670.1,668.96,2.20586107]
[1752090062814,0.25987507,670.1,668.66,2.486]
[1752090072222,0.25987507,670.1,669.06,1.64335912]
[1752090072428,0.25987507,670.1,669.07,1.64672636]
[1752090072723,0.25987507,670.1,669.08,1.64672636]
[1752090072926,0.25987507,670.1,669.09,1.64672636]
[1752090073123,0.25987507,670.1,669.1,1.64672636]
[1752090073327,0.25987507,670.1,669.11,1.64672636]
[1752090073527,0.25987507,670.1,669.12,1.64672636]
[1752090073727,0.25987507,670.1,669.13,1.64672636]
[1752090073926,0.25987507,670.1,669.14,1.64672636]
[1752090074128,0.25987507,670.1,669.15,1.64672636]
[1752090074428,0.25987507,670.1,669.16,1.64672636]
[1752090074728,0.25987507,670.1,669.17,1.64672636]
[1752090075024,0.25987507,670.1,669.18,1.64672636]
[1752090075226,0.25987507,670.1,669.19,1.64672636]
[1752090075428,0.25987507,670.1,669.2,1.64672636]
[1752090075629,0.25987507,670.1,669.21,1.64672636]
[1752090075925,0.25987507,670.1,669.22,1.64672636]
[1752090076129,0.25987507,670.1,669.23,1.64672636]
[1752090076332,0.25987507,670.1,669.24,1.64672636]
[1752090076524,0.25987507,670.1,669.25,1.64672636]
[1752090076729,0.25987507,670.1,669.26,1.64672636]
[1752090076928,0.25987507,670.1,668.83,1.64335912]
[1752090077224,0.25987507,670.1,668.84,1.65073862]
[1752090077430,0.25987507,670.1,668.85,1.65073862]
[1752090077630,0.25987507,670.1,668.86,1.65073862]
[1752090077927,0.25987507,670.1,668.87,1.65073862]
[1752090078127,0.25987507,670.1,668.88,1.65073862]
[1752090078427,1.6671865,669.6,668.66,2.486]
[1752090079525,1.6671865,669.59,668.66,2.486]
[1752090080430,1.6671865,669.58,668.66,2.486]
[1752090080727,1.6671865,669.55,668.66,2.486]
[1752090080931,1.6671865,669.56,668.66,2.486]
[1752090081338,1.6671865,669.53,668.66,2.486]
[1752090081526,1.6671865,669.52,668.66,2.486]
[1752090082532,1.6671865,669.51,668.66,2.486]
[1752090082833,1.6671865,669.42,668.66,2.486]
[1752090083028,1.6671865,669.43,668.66,2.486]
[1752090083232,3.33437301,669.65,668.66,2.486]
[1752090083233,1.6671865,669.48,668.66,2.486]
[1752090083432,1.6671865,669.51,668.66,2.486]
[1752090083732,1.6671865,669.54,668.66,2.486]
[1752090083932,1.6671865,669.59,668.66,2.486]
[1752090084233,1.6671865,669.6,668.66,2.486]
[1752090084433,1.6671865,669.61,668.66,2.486]
[1752090084631,1.6671865,669.62,668.66,2.486]
[1752090085130,1.6671865,669.61,668.66,2.486]
[1752090085433,1.6671865,669.57,668.66,2.486]
[1752090085928,0.25987507,670.1,668.66,2.486]
[1752090085929,1.6671865,669.58,668.66,2.486]
[1752090086336,1.6671865,669.59,668.66,2.486]
[1752090086534,1.6671865,669.58,668.66,2.486]
[1752090087231,1.6671865,669.61,668.66,2.486]
[1752090087434,1.6671865,669.55,668.66,2.486]
[1752090087634,1.6671865,669.51,668.67,1.64335912]
[1752090088234,1.6671865,669.54,668.66,2.486]
[1752090088634,1.6671865,669.53,668.66,2.486]
[1752090089534,1.6671865,669.5,668.67,1.64335912]
[1752090089729,1.6671865,669.5,668.66,4.12935912]
[1752090090032,1.6671865,669.54,668.66,2.486]
[1752090090238,1.6671865,669.55,668.66,2.486]
[1752090090532,1.6671865,669.54,668.66,2.486]
[1752090090736,1.6671865,669.48,668.68,1.64335912]
[1752090090933,1.6671865,669.61,668.66,2.486]
[1752090091135,1.6671865,669.65,668.66,2.486]
[1752090091333,1.6671865,669.66,668.66,2.486]
[1752090091535,1.6671865,669.63,668.66,2.486]
[1752090091734,1.6671865,669.67,668.74,1.64335912]
[1752090092038,1.6671865,669.66,668.73,1.64335912]
[1752090092439,1.6671865,669.62,668.72,1.64335912]
[1752090092640,1.6671865,669.66,668.76,1.64335912]
[1752090093438,1.6671865,669.65,668.77,1.64335912]
[1752090094037,1.6671865,669.64,668.77,1.64335912]
[1752090094238,1.6671865,669.64,668.76,1.64335912]
[1752090094540,1.6671865,669.63,668.77,1.64335912]
[1752090095541,1.6671865,669.62,668.78,1.64335912]
[1752090095741,1.6671865,669.62,668.77,1.64335912]
[1752090096437,1.6671865,669.61,668.79,1.64335912]
[1752090097136,1.6671865,669.61,668.78,1.64335912]
[1752090097543,1.6671865,669.6,668.8,1.64335912]
[1752090098043,1.6671865,669.61,668.79,1.64335912]
[1752090098343,1.6671865,669.59,668.81,1.64335912]
[1752090098543,1.6671865,669.59,668.82,1.64335912]
[1752090098741,0.25987507,670.1,668.82,1.64335912]
[1752090098742,1.6671865,669.58,668.82,1.64335912]
[1752090098943,1.6671865,669.58,668.83,1.64335912]
[1752090099138,1.6671865,669.58,668.83,2.076]
[1752090099843,2.22291534,669.75,668.83,2.076]
[1752090100039,0.25987507,670.1,668.83,2.076]
[1752090100538,1.67518568,669.57,668.83,2.076]
[1752090102842,1.67518568,669.55,668.85,1.65548339]
[1752090104042,1.67518568,669.55,668.84,1.65548339]
[1752090104344,1.67518568,669.53,668.87,1.65548339]
[1752090104742,1.67518568,669.53,668.86,1.65548339]
[1752090105042,1.67518568,669.54,668.86,1.65548339]
[1752090105645,1.67518568,669.53,668.87,1.65548339]
[1752090105947,1.67518568,669.58,668.83,2.076]
[1752090106453,1.67518568,669.57,668.83,2.076]
[1752090106657,1.67518568,669.58,668.83,2.076]
[1752090107457,1.67518568,669.59,668.83,2.076]
[1752090108457,0.26000127,669.7,668.97,1.65548339]
[1752090108658,0.26000127,669.7,668.98,2.37171615]
[1752090108959,0.26000127,669.7,668.99,2.37171615]
[1752090109154,0.26000127,669.7,669.0,2.37171615]
[1752090109359,0.26000127,669.7,669.01,2.37171615]
[1752090109558,0.26000127,669.7,669.02,2.37171615]
[1752090109854,0.26000127,669.7,668.97,1.65548339]
[1752090109855,0.26000127,669.7,669.03,2.37171615]
[1752090110058,0.26000127,669.7,669.04,2.37171615]
[1752090110255,0.26000127,669.7,669.05,2.37171615]
[1752090110458,0.26000127,669.7,669.06,2.37171615]
[1752090110759,0.26000127,669.7,669.07,2.37171615]
[1752090110955,0.26000127,669.7,669.08,2.37171615]
[1752090111153,0.26000127,669.7,669.09,2.37171615]
[1752090111459,0.26000127,669.7,669.1,2.37171615]
[1752090111655,0.26000127,669.7,669.11,2.37171615]
[1752090111858,0.26000127,669.7,669.12,2.37171615]
[1752090112059,0.26000127,669.7,669.13,2.37171615]
[1752090112255,0.26000127,669.7,668.96,1.65548339]
[1752090112256,0.26000127,669.7,669.14,2.37171615]
[1752090112560,0.26000127,669.7,669.15,2.37171615]
[1752090112760,0.26000127,669.7,669.16,2.37171615]
[1752090112961,0.26000127,669.7,669.17,2.37171615]
[1752090113158,0.26000127,669.7,669.18,2.37171615]
[1752090113362,0.26000127,669.7,669.19,2.37171615]
[1752090113560,0.26000127,669.7,669.2,2.37171615]
[1752090113761,0.26000127,669.7,669.21,2.37171615]
[1752090114061,0.26000127,669.7,669.22,2.37171615]
[1752090114259,0.26000127,669.7,669.23,2.37171615]
[1752090114461,0.26000127,669.7,669.24,2.37171615]
[1752090114760,0.26000127,669.7,669.25,2.37171615]
[1752090114958,0.26000127,669.7,669.26,2.37171615]
[1752090115162,0.26000127,669.7,669.27,2.37171615]
[1752090115364,0.26000127,669.7,669.28,0.72686393]
[1752090115563,0.26000127,669.7,669.29,0.72686393]
[1752090115863,0.26000127,669.7,669.3,0.72686393]
[1752090116060,0.26000127,669.7,669.31,0.72686393]
[1752090116261,0.26000127,669.7,669.32,0.72686393]
[1752090116465,0.26000127,669.7,669.33,0.72686393]
[1752090116665,0.26000127,669.7,669.34,0.72686393]
[1752090116868,0.26000127,669.7,669.35,0.72686393]
[1752090117062,0.26000127,669.7,669.36,0.72686393]
[1752090117261,0.26000127,669.7,669.37,0.72686393]
[1752090117462,0.26000127,669.7,669.38,0.72686393]
[1752090117666,0.26000127,669.7,669.39,0.72686393]
[1752090117867,0.26000127,669.7,669.4,0.72686393]
[1752090118067,0.26000127,669.7,669.41,0.72686393]
[1752090118271,0.26000127,669.7,669.42,0.72686393]
[1752090118464,0.26000127,669.7,669.43,0.72686393]
[1752090118662,0.26000127,669.7,669.44,0.72686393]
[1752090118870,0.26000127,669.7,669.45,0.72686393]
[1752090119164,0.26000127,669.7,669.46,0.72686393]
[1752090119366,0.26000127,669.7,669.47,0.72686393]
[1752090119668,0.26000127,669.7,668.95,1.65548339]
[1752090119863,0.26000127,669.7,668.96,2.37296418]
[1752090120064,0.26000127,669.7,668.97,2.37296418]
[1752090120263,0.26000127,669.7,668.98,2.37296418]
[1752090120465,0.26000127,669.7,668.99,2.37296418]
[1752090120667,0.26000127,669.7,669.0,2.37296418]
[1752090120969,0.26000127,669.7,669.01,2.37296418]
[1752090121265,0.26000127,669.7,669.02,2.37296418]
[1752090121465,0.26000127,669.7,669.03,2.37296418]
[1752090121671,0.26000127,669.7,669.04,2.37296418]
[1752090121871,0.26000127,669.7,669.05,2.37296418]
[1752090122071,0.26000127,669.7,669.06,2.37296418]
[1752090122373,0.26000127,669.7,669.07,2.37296418]
[1752090122570,0.26000127,669.7,669.08,2.37296418]
[1752090122872,0.26000127,669.7,669.09,2.37296418]
[1752090123070,0.26000127,669.7,669.1,2.37296418]
[1752090123373,0.26000127,669.7,669.11,2.37296418]
[1752090123672,0.26000127,669.7,669.12,2.37296418]
[1752090123869,0.26000127,669.7,669.13,2.37296418]
[1752090124169,0.26000127,669.7,669.14,2.37296418]
[1752090124376,0.26000127,669.7,669.15,2.37296418]
[1752090124573,0.26000127,669.7,669.16,2.37296418]
[1752090124773,0.26000127,669.7,669.17,2.37296418]
[1752090124970,0.26000127,669.7,669.18,2.37296418]
[1752090125173,0.26000127,669.7,669.19,2.37296418]
[1752090125470,0.26000127,669.7,669.2,2.37296418]
[1752090125774,0.26000127,669.7,669.21,2.37296418]
[1752090125974,0.26000127,669.7,669.22,2.37296418]
[1752090126173,0.26000127,669.7,669.23,2.37296418]
[1752090126476,0.26000127,669.7,669.24,2.37296418]
[1752090126671,0.26000127,669.7,669.25,2.37296418]
[1752090126874,0.26000127,669.7,669.26,2.37296418]
[1752090127072,0.26000127,669.7,669.27,2.37296418]
[1752090127376,0.26000127,669.7,669.28,2.37346063]
[1752090127672,0.26000127,669.7,669.28,0.72760454]
[1752090127877,0.26000127,669.7,668.95,1.65548339]
[1752090128177,0.26000127,669.7,668.96,1.64604788]
[1752090128373,0.26000127,669.7,668.97,1.64604788]
[1752090128576,0.26000127,669.7,668.98,1.64604788]
[1752090128775,0.26000127,669.7,668.99,1.64604788]
[1752090128978,0.26000127,669.7,669.0,1.64604788]
[1752090129175,0.26000127,669.7,669.01,1.64604788]
[1752090129375,0.26000127,669.7,669.02,2.37446607]
[1752090129675,0.26000127,669.7,669.03,2.37446607]
[1752090129878,0.26000127,669.7,669.04,2.37446607]
[1752090130079,0.26000127,669.7,669.05,2.37446607]
[1752090130380,0.26000127,669.7,669.06,2.37446607]
[1752090130577,0.26000127,669.7,669.07,2.37446607]
[1752090130882,0.26000127,669.7,668.56,2.46731246]
[1752090130883,0.26000127,669.7,669.08,2.37446607]
[1752090131080,0.26000127,669.7,669.09,2.37446607]
[1752090131382,0.26000127,669.7,669.1,2.37446607]
[1752090131582,0.26000127,669.7,669.11,2.37446607]
[1752090131884,0.26000127,669.7,669.12,0.72841819]
[1752090132080,0.26000127,669.7,669.13,0.72861109]
[1752090132383,0.26000127,669.7,669.14,0.72861109]
[1752090132583,0.26000127,669.7,669.15,2.37489129]
[1752090132780,0.26000127,669.7,669.16,2.37489129]
[1752090132984,0.26000127,669.7,669.17,0.72861109]
[1752090133282,0.26000127,669.7,669.18,2.37426264]
[1752090133483,0.26000127,669.7,669.19,2.37426264]
[1752090133783,0.26000127,669.7,669.2,2.37426264]
[1752090133980,0.26000127,669.7,669.21,2.37402688]
[1752090134179,0.26000127,669.7,669.22,2.37402688]
[1752090134378,0.26000127,669.7,669.23,2.37402688]
[1752090134679,0.26000127,669.7,669.24,2.37402688]
[1752090134883,0.26000127,669.7,669.25,0.72837533]
[1752090135183,0.26000127,669.7,669.26,0.72837533]
[1752090135383,0.26000127,669.7,669.27,0.72837533]
[1752090135584,0.26000127,669.7,669.28,0.72837533]
[1752090135783,0.26000127,669.7,669.29,0.72837533]
[1752090135985,0.26000127,669.7,669.3,0.72817292]
[1752090136183,0.26000127,669.7,669.31,0.72817292]
[1752090136381,0.26000127,669.7,669.32,0.72817292]
[1752090136681,0.26000127,669.7,669.33,0.72817292]
[1752090136881,0.26000127,669.7,669.34,0.72817292]
[1752090137087,0.26000127,669.7,669.14,1.917]
[1752090137088,0.26000127,669.7,669.35,0.72817292]
[1752090137382,0.26000127,669.7,669.14,1.917]
[1752090137586,0.26000127,669.7,669.15,2.37454524]
[1752090137786,0.26000127,669.7,669.16,2.37454524]
[1752090137984,0.26000127,669.7,669.17,2.37454524]
[1752090138181,0.26000127,669.7,669.18,2.37454524]
[1752090138385,0.26000127,669.7,669.19,2.37454524]
[1752090138581,1.67661414,669.51,669.2,0.72831929]
[1752090138785,0.26000127,669.7,669.14,1.917]
[1752090138786,1.67661414,669.49,669.21,0.72831929]
[1752090138987,1.67661414,669.51,669.22,0.72831929]
[1752090139186,1.67661414,669.51,669.23,0.72831929]
[1752090139487,1.67661414,669.51,669.24,0.72831929]
[1752090139688,1.67661414,669.49,669.25,0.72831929]
[1752090139990,1.67661414,669.49,669.26,0.72831929]
[1752090140184,1.67661414,669.49,669.27,0.72831929]
[1752090140388,1.67661414,669.49,669.28,0.72831929]
[1752090140689,1.67661414,669.48,669.29,0.72831929]
[1752090140883,1.67661414,669.49,669.3,0.72831929]
[1752090141085,1.67661414,669.49,669.31,0.72831929]
[1752090141291,1.67661414,669.49,669.32,0.72831929]
[1752090141487,1.67661414,669.49,669.33,0.72831929]
[1752090141686,1.67661414,669.49,669.34,0.72439906]
[1752090141886,1.67661414,669.48,669.14,1.917]
[1752090142085,1.67661414,669.48,669.15,0.7243958]
[1752090142290,1.67661414,669.48,669.16,0.7243958]
[1752090142589,1.67661414,669.48,669.17,0.7243958]
[1752090142789,1.67661414,669.46,669.18,0.7243958]
[1752090142990,1.67661414,669.46,669.19,0.7243958]
[1752090143190,2.23548553,669.65,669.14,1.917]
[1752090143191,1.67661414,669.44,669.2,0.7243958]
[1752090143490,1.67661414,669.44,669.21,0.7243958]
[1752090143692,1.67661414,669.44,669.22,0.7243958]
[1752090143887,1.67661414,669.43,669.23,0.7243958]
[1752090144091,1.67661414,669.43,669.24,0.7243958]
[1752090144292,1.67661414,669.44,669.25,0.7243958]
[1752090144494,1.67661414,669.43,669.26,0.7243958]
[1752090144692,1.67661414,669.43,669.27,0.7243958]
[1752090144993,1.67661414,669.43,669.28,0.7243958]
[1752090145190,1.67661414,669.43,669.29,0.7243958]
[1752090145494,1.67661414,669.46,669.3,0.72443825]
[1752090145694,1.67661414,669.46,669.31,0.72443825]
[1752090145889,1.67661414,669.46,669.32,0.72443825]
[1752090146094,1.67661414,669.47,669.33,0.72443825]
[1752090146292,1.67661414,669.47,669.34,0.72443825]
[1752090146490,1.67661414,669.46,669.35,0.72443825]
[1752090146793,0.26000127,669.7,669.14,1.917]
[1752090146794,1.67661414,669.47,669.36,0.72443825]
[1752090146991,1.67661414,669.47,669.37,0.72443825]
[1752090147194,1.67661414,669.47,669.38,0.72443825]
[1752090147396,1.67661414,669.47,669.39,0.72443825]
[1752090147594,1.67661414,669.47,669.4,0.72443825]
[1752090147789,1.67661414,669.47,669.41,0.72443825]
[1752090147995,1.67661414,669.49,669.42,0.72443825]
[1752090148294,1.67661414,669.48,669.14,1.917]
[1752090148490,1.67661414,669.49,669.15,0.72426734]